Cogmind - Beta 10.2 @@@ ROGUE MODE // 2020.11.02 @ 21:18:10 // Halloween2020/ForbiddenLore Player: blelm Result: Self-destructed Performance ------------- Evolutions (1) 500 Regions Visited (3) 600 Robots Destroyed (38) 190 Value Destroyed (613) 613 Prototype IDs (1) 20 Alien Tech Used (0) 0 Bonus (-40) -40 TOTAL SCORE: 1883 Bonus ------- Friendly Fire -40 Cogmind --------- Core Integrity 324/400 Matter 281/300 Energy 160/160 System Corruption 0% Temperature Cool (0) Movement Rolling (110) Ox1 Location -9/Materials Parts ------- > --- POWER (1) -------- Light Nuclear Core > --- PROPULSION (3) --- Light Treads Compact Wheel Compact Wheel > --- UTILITY (3) ------ Large Storage Unit Large Storage Unit Light Armor Plating > --- WEAPON (2) ------- Shotgun Shotgun > --- INVENTORY (16) --- Ion Engine Light Ion Engine Large Storage Unit Large Storage Unit Experimental Sensor Array Bomb Drone Bay Light Assault Rifle Autogun Improved Light Cannon Grenade Launcher Datajack Peak State ------------ > --- POWER ------------ Ion Engine > --- PROPULSION ------- Light Treads Light Treads > --- UTILITY ---------- Large Storage Unit Experimental Sensor Array > --- WEAPON ----------- Shotgun Shotgun > --- INVENTORY -------- Compact Wheel Compact Wheel Medium Storage Unit Bomb Drone Bay Light EM Pulse Cannon Light Assault Rifle Shotgun Shotgun Grenade Launcher [Rating: 16] Favorites ----------- Power Ion Engine Engine Ion Engine Power Core Light Nuclear Core Propulsion Light Treads Treads Light Treads Leg Aluminum Leg Wheel Compact Wheel Utility Large Storage Unit Device Experimental Sensor Array Storage Large Storage Unit Protection Light Armor Plating Weapon Shotgun Energy Gun Small Laser Ballistic Gun Shotgun Launcher Grenade Launcher Build | -11 -10 -10 -9 ------- Run | Scr Mat Min Mat Slots Evolved 2 | . . . 2 Power . | . . . . Propulsion 1 | . . . 1 Utility 1 | . . . 1 Weapon . | . . . . Parts Attached 28 | 3 10 6 9 Power 1 | . . . 1 Engine . | . . . . Core 1 | . . . 1 Reactor . | . . . . Propulsion 7 | 2 2 . 3 Treads 4 | 1 2 . 1 Leg . | . . . . Wheel 3 | 1 . . 2 Hover . | . . . . Flight . | . . . . Utility 10 | 1 2 4 3 Device 1 | . . 1 . Storage 8 | 1 2 3 2 Processor . | . . . . Hackware . | . . . . Protection 1 | . . . 1 Artifact . | . . . . Weapon 10 | . 6 2 2 Energy Gun . | . . . . Energy Cannon . | . . . . Ballistic Gun 8 | . 5 1 2 Ballistic Cannon . | . . . . Launcher 2 | . 1 1 . Special Weapon . | . . . . Impact Weapon . | . . . . Slashing Weapon . | . . . . Piercing Weapon . | . . . . Special Melee Weapon . | . . . . Unidentified Prototypes 1 | . . 1 . Parts Lost 4 | . . . 4 Power . | . . . . Propulsion 2 | . . . 2 Utility . | . . . . Weapon 2 | . . . 2 Highest Loss Streak 2 | . . . 2 Average Slot Usage (%) 97 | . 98 100 93 Engine 12 | . 14 14 9 Treads 24 | . 17 28 27 Wheel 3 | . 10 . . Storage 28 | . 28 28 28 Protection 1 | . . . 4 Energy Gun 2 | . 8 . . Ballistic Gun 21 | . 18 23 21 Launcher 1 | . . 4 . Naked Turns . | . . . . Heaviest Build 59 | 16 43 43 59 Greatest Support 60 | 20 20 40 60 Greatest Overweight (x) 14 | . 14 2 2 Average Overweight (x) . | . . 1 . Largest Inventory Capacity 22 | 8 16 16 22 Average Capacity 15 | 6 10 15 19 Most Carried 16 | 6 10 14 16 Average Carried 11 | 4 7 12 14 Final Capacity 16 | 8 16 16 16 Final Carried 14 | 4 9 14 12 Class Distribution -------------------- 80% | Mutant 19% | Hauler-Mutant Dominant Class ---------------- Mutant | -10/Materials Mutant | -10/Mines Hauler-Mutant | -9/Materials Resources | -11 -10 -10 -9 ----------- Run | Scr Mat Min Mat Matter Collected 869 | 220 2 203 444 Remotely . | . . . . Salvage Created 1209 | 94 17 254 844 Parts 71 | 2 2 11 56 Haulers Intercepted 1 | . . . 1 Recyclers Shooed 2 | 1 . . 1 Parts Field Recycled . | . . . . Retrieved Matter . | . . . . Parts Self-Destructed . | . . . . Prevented . | . . . . Kills | -11 -10 -10 -9 ------- Run | Scr Mat Min Mat Combat Hostiles Destroyed 25 | . 3 3 19 Guns 19 | . . . 19 AOE 6 | . 3 3 . Classes Destroyed 8 | 1 1 . 6 Builder 2 | . . . 2 Hauler 1 | . . . 1 Recycler 7 | 1 . 3 3 Operator 1 | . . . 1 Watcher 2 | . . . 2 Swarmer 16 | . 3 3 10 Grunt 7 | . . . 7 Sentry 2 | . . . 2 Best Kill Streak 8 | 1 3 3 8 Combat Bots Only 7 | . 3 3 7 Max Kills in Single Turn 3 | 1 2 3 2 Gunslinging 1 | . . . 1 Exploded 3 | . 2 3 . Melee . | . . . . Uniques/NPCs Destroyed . | . . . . Combat | -11 -10 -10 -9 -------- Run | Scr Mat Min Mat Damage Taken 1013 | . 28 90 895 Core 82 | . . 6 76 Absorbed by Shields . | . . . . Core Remaining (%) 98 | 100 . 97 . Volleys Fired 56 | 2 2 3 49 Largest 2 | 2 1 2 2 Hottest 90 | 90 30 46 46 Shots Fired 107 | 4 2 4 97 Gun 103 | 4 . 2 97 Cannon . | . . . . Launcher 4 | . 2 2 . Special . | . . . . Kinetic 99 | . . 2 97 Thermal 4 | 4 . . . Explosive 4 | . 2 2 . Electromagnetic . | . . . . Robot Hit Streak 17 | 4 6 10 17 Robot Miss Streak 7 | . . 1 7 Penetration Max . | . . . . Secondary Targets 2 | . . . 2 Max Gunslinging Chain 1 | . . . 1 Shots Hit Robots 77 | 4 2 4 67 Core Hits 56 | 2 3 9 42 Critical Hits 1 | . . . 1 Critical Kills 1 | . . . 1 Critical Parts Destroyed . | . . . . Melee Attacks . | . . . . Impact . | . . . . Slashing . | . . . . Piercing . | . . . . Sneak Attacks . | . . . . Combat Hostiles . | . . . . Follow-up Attacks . | . . . . Damage Inflicted 1775 | 48 153 283 1291 Guns 1099 | 48 . 28 1023 Cannons . | . . . . Explosions 635 | . 153 219 263 Melee . | . . . . Ramming 41 | . . 36 5 Kinetic 1051 | . . 28 1023 Thermal 311 | 48 . . 263 Explosive 372 | . 153 219 . Electromagnetic . | . . . . Impact . | . . . . Slashing . | . . . . Piercing . | . . . . Highest Corruption . | . . . . Average Corruption . | . . . . Corruption Purged . | . . . . Overload Shots . | . . . . Overflow Damage 45 | . . . 45 Projectiles . | . . . . Explosions 45 | . . . 45 Melee . | . . . . Knockbacks . | . . . . Impact . | . . . . Kinetic . | . . . . Secondary . | . . . . Self-Inflicted Damage 123 | . . 65 58 Shots 3 | . . 2 1 Rammed 6 | . . 6 . Targets Rammed 8 | . . 7 1 Kicked . | . . . . Crushed 2 | . . 1 1 Highest Temperature 60 | 60 . . 4 Average Temperature 14 | 30 . . 1 Received Heat Transfer 186 | . . . 186 Siege Activations . | . . . . Robots Corrupted . | . . . . Combat Hostiles . | . . . . Parts Fried . | . . . . Impact Corruptions . | . . . . Robots Melted . | . . . . Combat Hostiles . | . . . . Parts Melted . | . . . . Heat Transferred 274 | 124 . . 150 Parts Sabotaged . | . . . . Parts Stolen . | . . . . Parts Stripped . | . . . . Power Chain Reactions . | . . . . Missiles Intercepted . | . . . . Alert | -11 -10 -10 -9 ------- Run | Scr Mat Min Mat Peak Influence 400 | 5 80 94 400 Initial 4 | . 3 4 3 Average 85 | 3 20 53 190 Maximum Alert Level 2 | . . . 2 Low Security (%) 83 | 100 100 100 48 Level 1 14 | . . . 46 Level 2 1 | . . . 4 Level 3 . | . . . . Level 4 . | . . . . Level 5 . | . . . . High Security . | . . . . Max Security . | . . . . Squads Dispatched 3 | . 1 . 2 Investigation 2 | . 1 . 1 Extermination . | . . . . Reinforcement 1 | . . . 1 Assault . | . . . . Garrison . | . . . . Intercept . | . . . . Construction Impeded . | . . . . Haulers Reinforced . | . . . . Stealth | -11 -10 -10 -9 --------- Run | Scr Mat Min Mat Distress Signals 4 | . . . 4 Communications Jammed . | . . . . Distress Signals . | . . . . Times Spotted 36 | . 3 3 30 Peak Tracking Total 8 | . 3 3 8 Tactical Retreats 4 | . . . 4 Traps | -11 -10 -10 -9 ------- Run | Scr Mat Min Mat Traps Triggered 2 | . 1 . 1 Indirectly . | . . . . Trap Hack Attempts . | . . . . Triggered . | . . . . Disarmed . | . . . . Reprogrammed . | . . . . Reused . | . . . . Traps Extracted . | . . . . Installed . | . . . . Triggered . | . . . . Machines | -11 -10 -10 -9 ---------- Run | Scr Mat Min Mat Machines Disabled 1 | . . . 1 Max in Single Turn 1 | . . . 1 Machines Sabotaged . | . . . . Garrisons Compromised . | . . . . Overloaded Fab Kills . | . . . . Fab Network Shutdowns . | . . . . Hacking | -11 -10 -10 -9 --------- Run | Scr Mat Min Mat Machines Accessed 6 | . 4 1 1 Terminals 4 | . 3 . 1 Fabricators . | . . . . Repair Stations . | . . . . Recycling Units 1 | . 1 . . Scanalyzers . | . . . . Garrison Access . | . . . . Total Hacks 12 | . 10 1 1 Successful 4 | . 3 1 . Failed 8 | . 7 . 1 Catastrophic 1 | . . . 1 Database Lockouts . | . . . . Manual 7 | . 6 . 1 Terminals 8 | . 7 . 1 Fabricators . | . . . . Repair Stations . | . . . . Recycling Units 3 | . 3 . . Scanalyzers . | . . . . Garrison Access . | . . . . Terminal Hacks 4 | . 3 1 . Robot Analysis 2 | . 2 . . Open Door 1 | . . 1 . Branch Access Points 1 | . 1 . . Fabricator Hacks . | . . . . Repair Station Hacks . | . . . . Recycling Unit Hacks . | . . . . Scanalyzer . | . . . . Garrison Access Hacks . | . . . . Unauthorized Hacks . | . . . . Terminals . | . . . . Fabricators . | . . . . Repair Stations . | . . . . Recycling Units . | . . . . Scanalyzers . | . . . . Garrison Access . | . . . . Data Cores Recovered . | . . . . Used . | . . . . Hacking Detections 5 | . 4 . 1 Full Trace Events 1 | . 1 . . Feedback Events . | . . . . Feedback Blocked . | . . . . Robot Schematics Acquired . | . . . . Robots Built . | . . . . Matter . | . . . . Time . | . . . . Total Robot Build Rating . | . . . . Part Schematics Acquired . | . . . . Parts Built . | . . . . Matter . | . . . . Time . | . . . . Total Part Build Rating . | . . . . Parts Repaired . | . . . . Time . | . . . . Parts Recycled . | . . . . Recycled Matter . | . . . . Retrieved Matter . | . . . . Retrieved Components . | . . . . Parts Scanalyzed . | . . . . Part Schematics Acquired . | . . . . Parts Damaged . | . . . . Bothacking | -11 -10 -10 -9 ------------ Run | Scr Mat Min Mat Used RIF Installer . | . . . . Robots Hacked . | . . . . Non-combat . | . . . . Combat . | . . . . Robot Hacks Applied . | . . . . Relay Couplers Released . | . . . . Robots Rewired . | . . . . Allies Hacked . | . . . . Hacks Repelled . | . . . . Allies | -11 -10 -10 -9 -------- Run | Scr Mat Min Mat Total Allies . | . . . . Largest Group . | . . . . Highest-Rated Group . | . . . . Highest-Rated Ally . | . . . . Total Orders . | . . . . Ally Attacks . | . . . . Total Damage . | . . . . Kills . | . . . . Allies Corrupted . | . . . . Allies Melted . | . . . . Intel | -11 -10 -10 -9 ------- Run | Scr Mat Min Mat Robot Analysis Total 2 | . 2 . . Derelict Logs Recovered 1 | . . 1 . Drone Launches . | . . . . Drone Recoveries . | . . . . Exploration | -11 -10 -10 -9 ------------- Run | Scr Mat Min Mat Turns Passed 1906 | 30 558 728 590 Spaces Moved 879 | 12 300 374 193 Core 2 | . 2 . . Treads 859 | 12 296 374 177 Legs . | . . . . Wheels 18 | . 2 . 16 Hover . | . . . . Flight . | . . . . Fastest Speed 110 | 160 120 160 110 Average Speed 175 | 160 172 184 165 Slowest Speed 750 | 160 750 200 200 Overloaded Moves . | . . . . Propulsion Burnouts . | . . . . Robots Hopped . | . . . . Cave-ins Triggered . | . . . . Exploration Rate (%) 30 | 2 37 67 16 Regions Visited 3 Branch Regions 1 Pre-discovered Areas . | . . . . Known Exits Taken 1 | . 1 . . Unknown Exits Taken 2 | 1 . 1 . Scrap Searched 1 | . . 1 . Spaces Dug . | . . . . Terrain Destroyed 36 | . 13 15 8 Melee . | . . . . Projectile . | . . . . AOE 36 | . 13 15 8 Terrain Rammed . | . . . . Walls Destroyed . | . . . . Machines Disabled . | . . . . Actions | -11 -10 -10 -9 --------- Run | Scr Mat Min Mat Total 1124 | 18 338 402 366 Wait 122 | . 13 3 106 Move 876 | 11 299 373 193 Hop . | . . . . Pick Up 19 | . 8 8 3 Fast Attach 10 | 1 4 2 3 Attach 6 | . 1 . 5 Detach 2 | . . . 2 Swap 12 | 2 5 4 1 Drop 13 | 2 6 2 3 Fire 56 | 2 2 3 49 Melee . | . . . . Ram . | . . . . Kick . | . . . . Crush 8 | . . 7 1 Escape Stasis . | . . . . Rewire . | . . . . Trap . | . . . . Miscellaneous . | . . . . Route ------- -11/Scrapyard -10/Materials (discovered 2 exits: *Min x2) -10/Mines (discovered 2 exits: *Mat x2) -9/Materials (discovered 1 exit: *Sto) History --------- Turn | Location | Event 5 | -11/Scrapyard | Discovered new exit (range 2) 31 | -11/Scrapyard | Entered Materials 90 | -10/Materials | Identified exit to Mines 317 | -10/Materials | Build established: Mutant 589 | -10/Materials | Entered Mines 608 | -10/Mines | Met a Derelict bent on vengeance 707 | -10/Mines | Learned 2 Materials zone layouts 797 | -10/Mines | Found a damaged Exp. Sensor Array with a note attached 802 | -10/Mines | Found Prototype Device 862 | -10/Mines | Found the Drone Emporium 874 | -10/Mines | Found Prototype Device 911 | -10/Mines | Discovered new exit (range 11) 933 | -10/Mines | Identified Exp. Sensor Array 1150 | -10/Mines | Discovered new exit (range 7) 1317 | -10/Mines | Entered Materials 1317 | -9/Materials | Evolved 2 slots: Propulsion x1, Utility x1 1318 | -9/Materials | Identified exit to Storage 1608 | -9/Materials | Build established: Hauler-Mutant 1623 | -9/Materials | Destroyed 7 combat bots 1907 | -9/Materials | Self-destructed Last Messages --------------- 01862_ U-05 Engineer lays Concrete. 01869_ K-01 Serf collects debris. 01869_ U-05 Engineer lays Concrete. 01879_ S-10 Pest destroyed. 01879_ Switching to secondary target: S-10 Pest. 01880_ U-05 Engineer builds a Wall. 01881_ U-05 Engineer lays Concrete. 01882_ S-10 Pest destroyed. 01884_ U-05 Engineer builds a Wall. 01885_ Acquired 17 matter. 01888_ K-01 Serf collects debris. 01888_ U-05 Engineer lays Concrete. 01890_ U-05 Engineer builds a Wall. 01891_ K-01 Serf collects debris. 01894_ Acquired 19 matter. 01895_ K-01 Serf collects debris. 01895_ U-05 Engineer lays Concrete. 01896_ Acquired 27 matter. 01896_ U-05 Engineer lays Concrete. 01897_ K-01 Serf collects debris. Map ----- +----------------------------------------------------+ | | | | | | | | | | | ?????????????????????????????????????????????????? | | ?????????????????????????????????????????????????? | | ?????????????????????????????????????????????????? | | ###??????????????????????????????????????????????? | | !##?????????????????????????????????????????????? | | !#????????##########???????????????????????????? | | !#??####### ########????????????????????? | | #### # ! ## #????????????????????? | | # ## ######???????????????? | | # + ????????????????? | | # %""" ## #????????????????? | | ####### #!==%""" ## #????????????????? | | #????## ##!=%**R" #? !! #????????????????? | | #?????# ##==!=""" #? !! #????????????????? | | #?????# ##[%]=* #? !! #????????????????? | | #?????# ###+#######?# #????????????????? | | #?????# !%%%%%=# T? + #????????????????? | | #?????# * % = # ? # "" +????????????????? | | #?????# % T= # ? # "" #????????????????? | | #?????# # ? #[[ T" #????????????????? | | ##?????# # ! #[@ "" #????????????????? | | ???????# % # # "" #????????????????? | | ???????# # # #????????????????? | | ???????# # # #????????????????? | | ???????# ##???# ######????????????????? | | ???????# *=[##??## ##????????????# #?????? | | ???????# ** ##### ############## ####??? | | ???????# %!%[ == ??? | | ???????# *% * ! *= > ??? | | ???????# |! ??? | | ???????# ##### ###################??? | | ????? ######???## ##?????????# ??? | | ????#### #####???????# #????###???#""" ??? | | ???????# ???????????## ###### #???#""" ??? | | ???????# ???????????? # # #???#""" ??? | | ???????# ????????????? # # T #???# ??? | | ???????#?????????????? # # #???#""" ??? | | ?????????????????????? # # #???#""" ??? | | ?????????????????????? + + #???#""" ??? | | ?????????????????????? # # #???# ??? | | ??????????????????????## ###+################??? | | ?????????????????????? ??? | | ?????????????????????? ###############??? | | ?????????????????????? #????????????????? | | ??????????????????????#######+#####??????????????? | +----------------------------------------------------+ Best States ------------- Heat Dissipation 28 Energy Generation 14 Energy Capacity 250 Matter Stores 300 Matter Capacity 300 Sight Range 16 Terrain Scan Density 10 Armor Coverage 150 Evasion (%) 40 Recoil Reduction 3 Item Schematics ----------------- None Robot Schematics ------------------ None Fabricated ------------ Nothing Alien Tech Used ----------------- None Achievements -------------- None Challenges ------------ None Game ------ Seed ShrapnelCatalystRipper Manual? 0 Play Time 00:12:23 Cumulative 41.1 hours Start 2020.11.02 @ 21:06:12 End 2020.11.02 @ 21:18:10 Sessions 1 Manual Loads 0 Difficulty Rogue Special Mode Halloween2020/ForbiddenLore Game No. 28 Rogue 28 Adventurer 0 Explorer 0 Win Type - Total 0 Types 0/0/0/0/0/0/0/0/0 Lore% 21 Gallery% 27 Achievement% 22 Wizard Run 0 Options --------- ASCII 1 Keyboard 1 Movement Vi Keybinds 0 Fullscreen 1 Font 16/Terminus Map View 75x55 Tactical HUD 1 Map Filters NONE Filters NONE Steam 1 RUN: c276f3c4-1d6d-4c8c-be2e-14b38b224988